bitfinex/quotes_BTCUSD_20240731
["timestamp","ask_amount","ask_price","bid_price","bid_amount"]
[1722392521217,0.00083,66329.0,66328.0,1.313158]
[1722392523666,0.00083,66329.0,66328.0,1.323158]
[1722392523868,0.00083,66329.0,66328.0,1.33231659]
[1722392524616,0.00083,66329.0,66328.0,1.33431659]
[1722392524749,0.00083,66329.0,66328.0,1.33231659]
[1722392524950,0.00083,66329.0,66328.0,1.32231659]
[1722392527113,0.00083,66329.0,66328.0,1.33431659]
[1722392527517,0.00083,66329.0,66328.0,1.33231659]
[1722392527847,0.00083,66329.0,66328.0,1.33431659]
[1722392528256,0.00083,66329.0,66328.0,1.32231659]
[1722392528468,0.00083,66329.0,66328.0,1.33231659]
[1722392529876,0.00083,66329.0,66328.0,1.32231659]
[1722392530078,0.00083,66329.0,66328.0,1.33431659]
[1722392530500,0.00083,66329.0,66328.0,1.32231659]
[1722392531167,0.00083,66329.0,66328.0,1.33231659]
[1722392531387,0.00083,66329.0,66328.0,1.33431659]
[1722392532380,0.00083,66329.0,66328.0,1.32231659]
[1722392532581,0.00083,66329.0,66328.0,1.33231659]
[1722392533541,0.00083,66329.0,66328.0,1.32231659]
[1722392536498,0.00083,66329.0,66328.0,1.02078559]
[1722392536975,0.00083,66329.0,66328.0,1.32231659]
[1722392537834,0.00083,66329.0,66328.0,1.02078559]
[1722392538218,0.00083,66329.0,66328.0,1.011627]
[1722392538619,0.01406178,66329.0,66328.0,1.011627]
[1722392538885,0.00083,66329.0,66328.0,1.011627]
[1722392539189,0.00083,66329.0,66328.0,0.710096]
[1722392539500,0.00083,66329.0,66328.0,1.13693944]
[1722392540442,0.00083,66329.0,66328.0,1.011627]
[1722392541025,0.01406178,66329.0,66328.0,1.011627]
[1722392541227,0.00083,66329.0,66328.0,1.011627]
[1722392541429,0.01406178,66329.0,66328.0,1.011627]
[1722392542110,0.01406178,66329.0,66328.0,1.021627]
[1722392543443,0.01406178,66329.0,66328.0,1.011627]
[1722392543875,0.00083,66329.0,66328.0,1.011627]
[1722392545045,0.01405865,66329.0,66328.0,1.011627]
[1722392545849,0.00083,66329.0,66328.0,1.011627]
[1722392546056,0.01405865,66329.0,66328.0,1.011627]
[1722392546257,0.00083,66329.0,66328.0,1.011627]
[1722392546455,0.01405865,66329.0,66328.0,1.011627]
[1722392546816,0.01405865,66329.0,66328.0,0.710096]
[1722392547174,0.01405865,66329.0,66328.0,1.011627]
[1722392547681,0.01405865,66329.0,66328.0,0.265365]
[1722392547880,0.01405865,66329.0,66328.0,0.566896]
[1722392548293,0.01561285,66329.0,66328.0,0.566896]
[1722392548678,0.01405865,66329.0,66328.0,0.566896]
[1722392548853,0.01405865,66329.0,66328.0,0.265365]
[1722392549523,0.01561285,66329.0,66328.0,0.251365]
[1722392549868,0.01561285,66329.0,66328.0,0.237365]
[1722392550013,0.01561285,66329.0,66328.0,0.251365]
[1722392550014,0.01405865,66329.0,66328.0,0.251365]
[1722392550212,0.01561285,66329.0,66328.0,0.552896]
[1722392550470,0.08194293,66329.0,66328.0,0.552896]
[1722392550768,0.08194293,66329.0,66328.0,0.251365]
[1722392550972,0.08194293,66329.0,66328.0,0.265365]
[1722392551914,0.08194293,66329.0,66328.0,0.028]
[1722392552088,0.42188573,66329.0,66328.0,0.028]
[1722392552311,0.61024865,66329.0,66328.0,0.028]
[1722392552542,0.65583978,66329.0,66328.0,0.028]
[1722392552715,0.61024865,66329.0,66328.0,0.028]
[1722392553574,0.15795865,66329.0,66328.0,0.028]
[1722392553808,0.01405865,66329.0,66328.0,0.410365]
[1722392554024,0.01561285,66329.0,66328.0,1.314958]
[1722392554228,0.07029057,66329.0,66328.0,1.324958]
[1722392554450,0.00083,66329.0,66328.0,1.326958]
[1722392554661,0.00083,66329.0,66328.0,1.92442399]
[1722392555243,0.00083,66329.0,66328.0,1.91042023]
[1722392555654,0.00083,66329.0,66328.0,1.92442023]
[1722392555797,0.00083,66329.0,66328.0,1.91042023]
[1722392556008,0.00083,66329.0,66328.0,1.92442023]
[1722392557502,0.00083,66329.0,66328.0,1.93333775]
[1722392558807,0.00083,66329.0,66328.0,1.93333371]
[1722392559052,0.00083,66329.0,66328.0,1.93333403]
[1722392561774,0.00083,66329.0,66328.0,1.93333608]
[1722392565132,0.00083,66329.0,66328.0,1.93333607]
[1722392565684,0.00083,66329.0,66328.0,1.91133607]
[1722392565866,0.00083,66329.0,66328.0,1.93133607]
[1722392566272,0.00083,66329.0,66328.0,1.93333607]
[1722392566786,0.00083,66329.0,66328.0,1.93133607]
[1722392567613,0.00083,66329.0,66328.0,1.93333607]
[1722392570520,0.00083,66329.0,66328.0,1.80803956]
[1722392570859,0.00083,66329.0,66328.0,1.44917203]
[1722392571663,0.00083,66329.0,66328.0,1.32387552]
[1722392572019,0.00083,66329.0,66328.0,1.44917281]
[1722392572977,0.00083,66329.0,66328.0,1.45917281]
[1722392573177,0.00083,66329.0,66328.0,1.44917281]
[1722392574535,0.00083,66329.0,66328.0,1.45917281]
[1722392574898,0.00083,66329.0,66328.0,1.44917281]
[1722392578164,0.00083,66329.0,66328.0,1.45917281]
[1722392578417,0.00083,66329.0,66328.0,1.63180585]
[1722392578954,0.00083,66329.0,66328.0,1.6318091]
[1722392581033,0.00083,66329.0,66328.0,1.50650856]
[1722392581163,0.00083,66329.0,66328.0,1.63180878]
[1722392583935,0.00083,66329.0,66328.0,1.50650856]
[1722392584212,0.00083,66329.0,66328.0,1.63180879]
[1722392587363,0.00083,66329.0,66328.0,1.63180884]
[1722392589221,0.00083,66329.0,66328.0,1.63180871]
[1722392589448,0.00083,66329.0,66328.0,1.60980871]
[1722392590679,0.00083,66329.0,66328.0,1.48450856]
[1722392590837,0.00083,66329.0,66328.0,1.60980935]
[1722392593803,0.00083,66329.0,66328.0,1.62980935]
[1722392593993,0.00083,66329.0,66328.0,1.62981273]
[1722392594396,0.00083,66329.0,66328.0,1.63181273]
[1722392597172,0.00083,66329.0,66328.0,1.50650856]
[1722392597413,0.00083,66329.0,66328.0,1.63181299]
[1722392597928,0.00083,66329.0,66328.0,1.60981299]
[1722392598152,0.00083,66329.0,66328.0,1.62981299]
[1722392599492,0.00083,66329.0,66328.0,1.62980967]
[1722392600035,0.00083,66329.0,66328.0,1.63180967]
[1722392600534,0.00083,66329.0,66328.0,1.63181096]
[1722392603779,0.00083,66329.0,66328.0,1.6318059]
[1722392604521,0.00083,66329.0,66328.0,1.6098059]
[1722392604928,0.00083,66329.0,66328.0,1.48450856]
[1722392605081,0.00083,66329.0,66328.0,1.60980964]
[1722392605303,0.00083,66329.0,66328.0,1.93334064]
[1722392607219,0.00083,66329.0,66328.0,1.80803956]
[1722392607384,0.00083,66329.0,66328.0,1.93333446]
[1722392607790,0.00083,66329.0,66328.0,1.93333351]
[1722392610408,0.00083,66329.0,66328.0,1.80603956]
[1722392610629,0.00083,66329.0,66328.0,1.93133416]
[1722392613779,0.00083,66329.0,66328.0,1.80603956]
[1722392613974,0.00083,66329.0,66328.0,1.93133563]
[1722392614493,0.00083,66329.0,66328.0,2.03133563]
[1722392617329,0.00083,66329.0,66328.0,2.03133346]
[1722392617483,0.00083,66329.0,66328.0,1.70980246]
[1722392617697,0.00083,66329.0,66328.0,1.58450856]
[1722392617898,0.00083,66329.0,66328.0,2.01133502]
[1722392618852,0.00083,66329.0,66328.0,1.73180402]
[1722392619052,0.00083,66329.0,66328.0,1.62320402]
[1722392619263,0.00083,66329.0,66328.0,1.64320402]
[1722392619461,0.00083,66329.0,66328.0,1.72980402]
[1722392619861,0.00083,66329.0,66328.0,2.03133502]
[1722392620347,0.00083,66329.0,66328.0,1.90603956]
[1722392620556,0.00083,66329.0,66328.0,2.03133609]
[1722392624612,0.00083,66329.0,66328.0,1.70980509]
[1722392625559,0.00083,66329.0,66328.0,1.72980509]
[1722392627020,0.00083,66329.0,66328.0,1.60650856]
[1722392627215,0.00083,66329.0,66328.0,1.73180723]
[1722392627823,0.00083,66329.0,66328.0,1.60650856]
[1722392628337,0.00083,66329.0,66328.0,1.85710543]
[1722392629154,0.00083,66329.0,66328.0,2.15863639]
[1722392629671,0.00083,66329.0,66328.0,1.83510539]
[1722392629872,0.00083,66329.0,66328.0,1.85510539]
[1722392630084,0.00083,66329.0,66328.0,1.85710539]
[1722392630506,0.00083,66329.0,66328.0,1.73180685]
[1722392633847,0.00083,66329.0,66328.0,1.73180754]
[1722392636397,0.00083,66329.0,66328.0,1.72180754]
[1722392637164,0.00083,66329.0,66328.0,1.71180754]
[1722392637363,0.00083,66329.0,66328.0,1.71180659]
[1722392637578,0.00083,66329.0,66328.0,1.73180659]
[1722392637777,0.00083,66329.0,66328.0,1.60650856]
[1722392637972,0.00083,66329.0,66328.0,1.70980661]
[1722392639132,0.00083,66329.0,66328.0,1.72980661]
[1722392639337,0.00083,66329.0,66328.0,1.70980661]
[1722392639897,0.00083,66329.0,66328.0,1.72980661]
[1722392642373,0.00083,66329.0,66328.0,1.70980661]
[1722392642612,0.00083,66329.0,66328.0,1.73180661]
[1722392642843,0.00083,66329.0,66328.0,1.73180715]
[1722392646585,0.00083,66329.0,66328.0,1.58450856]
[1722392646714,0.00083,66329.0,66328.0,1.70980742]
[1722392646919,0.00083,66329.0,66328.0,1.56480742]
[1722392647772,0.06683,66329.0,66328.0,1.31757438]
[1722392647970,0.14593,66329.0,66328.0,1.10264338]
[1722392648326,0.14593,66329.0,66328.0,1.10265077]
[1722392648327,0.15697177,66329.0,66328.0,1.10265077]
[1722392649661,0.09097177,66329.0,66328.0,1.10265077]
[1722392649858,0.09097177,66329.0,66328.0,1.40418177]
[1722392650022,0.00083,66329.0,66328.0,1.40418177]
[1722392652261,0.00083,66329.0,66328.0,1.70111481]
[1722392652453,0.00083,66329.0,66328.0,1.71111481]
[1722392652644,0.00083,66329.0,66328.0,1.71110756]
[1722392652900,0.00083,66329.0,66328.0,1.72110756]
[1722392654050,0.00083,66329.0,66328.0,1.71071304]
[1722392654250,0.00083,66329.0,66328.0,1.72071304]
[1722392654971,0.00083,66329.0,66328.0,1.72271304]
[1722392655824,0.00083,66329.0,66328.0,1.70071304]
[1722392656520,0.00083,66329.0,66328.0,1.57541404]
[1722392656719,0.00083,66329.0,66328.0,1.70070906]
[1722392657336,0.00083,66329.0,66328.0,1.72070906]
[1722392658297,0.00083,66329.0,66328.0,1.59541404]
[1722392658498,0.00083,66329.0,66328.0,1.72070873]
[1722392659450,0.00083,66329.0,66328.0,1.72070896]
[1722392659753,0.00083,66329.0,66328.0,1.72162196]
[1722392662743,0.00083,66329.0,66328.0,1.72362335]
[1722392664145,0.00083,66329.0,66328.0,1.70162335]
[1722392664350,0.00083,66329.0,66328.0,1.72362335]
[1722392664531,0.00083,66329.0,66328.0,1.70162335]
[1722392665309,0.00083,66329.0,66328.0,1.70162456]
[1722392665715,0.00083,66329.0,66328.0,1.72362456]
[1722392665866,0.00083,66329.0,66328.0,1.72162456]
[1722392666050,0.00083,66329.0,66328.0,1.58632704]
[1722392666250,0.00083,66329.0,66328.0,2.02515574]
[1722392666593,0.00083,66329.0,66328.0,1.72362474]
[1722392666746,0.00083,66329.0,66328.0,1.72362454]
[1722392667785,0.00083,66329.0,66328.0,2.02515554]
[1722392668388,0.00083,66329.0,66328.0,2.0251515]
[1722392669686,0.00083,66329.0,66328.0,2.02515095]
[1722392674794,0.06792402,66340.0,66339.0,0.16074]
[1722392675079,0.13584805,66350.0,66339.0,0.16074]
[1722392675080,0.0656,66348.0,66347.0,0.753612]
[1722392675418,0.0656,66351.0,66350.0,0.753577]
[1722392675549,0.0656,66351.0,66350.0,1.141608]
[1722392676195,0.07451197,66351.0,66350.0,1.141608]
[1722392676390,0.00891197,66351.0,66350.0,1.295108]
[1722392676612,0.00891197,66351.0,66350.0,1.596539]
[1722392676804,0.09048095,66361.0,66360.0,0.753465]
[1722392676805,0.06786071,66361.0,66360.0,0.753465]
[1722392677023,0.06786071,66362.0,66361.0,0.15069]
[1722392677140,0.06786071,66362.0,66361.0,0.538671]
[1722392677342,0.12876071,66364.0,66363.0,0.452058]
[1722392677595,0.0609,66364.0,66363.0,0.452058]
[1722392677804,0.1433,66364.0,66363.0,0.452058]
[1722392678201,0.1433,66364.0,66363.0,0.150686]
[1722392678605,0.1433,66364.0,66363.0,0.164686]
[1722392678778,0.1433,66364.0,66363.0,0.014]
[1722392678977,0.1433,66364.0,66363.0,0.164686]
[1722392679188,0.1433,66364.0,66363.0,0.466058]
[1722392679399,0.1433,66364.0,66363.0,0.78043]
[1722392680611,0.0824,66364.0,66363.0,0.78043]
[1722392681287,0.0608,66366.0,66363.0,0.78043]
[1722392681288,0.0608,66366.0,66365.0,0.753407]
[1722392681497,0.083,66367.0,66366.0,0.452038]
[1722392681729,0.083,66367.0,66366.0,0.753397]
[1722392682233,0.06786071,66372.0,66371.0,0.75334]
[1722392682481,0.00083,66375.0,66374.0,0.150661]
[1722392682651,0.00083,66375.0,66374.0,0.90331774]
[1722392682856,0.00083,66375.0,66374.0,1.20463974]
[1722392682857,0.00981005,66375.0,66374.0,1.20463974]
[1722392683069,0.00083,66375.0,66374.0,1.201627]
[1722392683273,0.00083,66375.0,66374.0,1.141227]
[1722392684545,0.00083,66375.0,66374.0,0.839905]
[1722392685169,0.00083,66375.0,66374.0,0.853905]
[1722392685379,0.00083,66375.0,66374.0,0.867905]
[1722392685590,0.00083,66375.0,66374.0,1.169227]
[1722392687102,0.00083,66375.0,66374.0,0.867905]
[1722392690140,0.00083,66375.0,66374.0,1.169227]
[1722392690334,0.00083,66375.0,66374.0,0.867905]
[1722392691588,0.00083,66375.0,66374.0,0.781305]
[1722392692052,0.00083,66375.0,66374.0,0.867905]
[1722392700542,0.00077903,66375.0,66374.0,0.867905]
[1722392701718,0.00077903,66375.0,66374.0,0.853905]
[1722392702124,0.00077903,66375.0,66374.0,0.028]
[1722392702125,0.14277903,66375.0,66374.0,0.028]
[1722392702326,0.14277903,66375.0,66374.0,0.251261]
[1722392702529,0.15203825,66375.0,66374.0,0.265261]
[1722392702729,0.15203825,66375.0,66374.0,0.251261]
[1722392702936,0.15203825,66375.0,66374.0,0.1146]
[1722392703352,0.15203825,66375.0,66366.0,0.459657]
[1722392703353,0.15203825,66375.0,66366.0,0.301358]
[1722392703562,0.0624,66372.0,66366.0,0.0866]
[1722392703772,0.01003825,66375.0,66369.0,0.0866]
[1722392703773,0.1389,66370.0,66369.0,0.0866]
[1722392704386,0.14817442,66370.0,66369.0,0.0866]
[1722392704623,0.0629,66373.0,66369.0,0.387945]
[1722392704850,0.0796,66374.0,66373.0,0.0866]
[1722392705038,0.00077903,66375.0,66374.0,0.150661]
[1722392705666,0.00077903,66375.0,66374.0,0.451983]
[1722392706486,0.00077903,66375.0,66374.0,0.465983]
[1722392706689,0.00077903,66375.0,66374.0,0.479983]
[1722392706890,0.01073567,66375.0,66374.0,0.479983]
[1722392707040,0.00077903,66375.0,66374.0,0.781305]
[1722392707258,0.00077903,66375.0,66374.0,1.082627]
[1722392707432,0.00077903,66375.0,66374.0,0.922805]
[1722392708059,0.00077903,66375.0,66374.0,1.224127]
[1722392708267,0.00077903,66375.0,66374.0,0.922805]
[1722392710320,0.00077903,66375.0,66374.0,1.224127]
[1722392710780,0.00077903,66375.0,66374.0,0.922805]
[1722392712300,0.00077903,66375.0,66374.0,1.009405]
[1722392713508,0.00077903,66375.0,66374.0,0.933805]
[1722392713709,0.00077903,66375.0,66374.0,0.867905]
[1722392716296,0.00077903,66375.0,66374.0,0.566583]
[1722392716703,0.00077903,66375.0,66374.0,0.867905]
[1722392720887,0.00077903,66375.0,66374.0,0.479983]
[1722392721086,0.00077903,66375.0,66374.0,0.1146]
[1722392721307,0.00077903,66375.0,66374.0,0.178661]
[1722392721541,0.01077192,66375.0,66374.0,0.479983]
[1722392722461,0.15177192,66375.0,66374.0,0.028]
[1722392724767,0.21947912,66375.0,66374.0,0.028]
[1722392724972,0.15177192,66375.0,66374.0,0.028]
[1722392725459,0.21956882,66375.0,66374.0,0.028]
[1722392725630,0.15177192,66375.0,66374.0,0.028]
[1722392725871,0.15177192,66375.0,66374.0,0.028913]
[1722392726299,0.24218689,66375.0,66374.0,0.028913]
[1722392726470,0.15177192,66375.0,66374.0,0.028913]
[1722392727333,0.26484177,66375.0,66374.0,0.028913]
[1722392728644,0.20014177,66375.0,66374.0,0.179574]
[1722392728842,0.10123446,66375.0,66374.0,0.179574]
[1722392729052,0.10123446,66375.0,66374.0,0.480896]
[1722392729053,0.07861498,66375.0,66374.0,0.480896]
[1722392729267,0.01077192,66375.0,66374.0,0.782218]
[1722392730749,0.01077192,66375.0,66374.0,1.14604]
[1722392731142,0.00077903,66375.0,66374.0,1.14604]
[1722392731302,0.00983557,66375.0,66374.0,1.14604]
[1722392731505,0.00077903,66375.0,66374.0,1.14604]
[1722392732374,0.00983935,66375.0,66374.0,1.14604]
[1722392732566,0.00077903,66375.0,66374.0,1.14604]
[1722392732702,0.00983935,66375.0,66374.0,1.14604]
[1722392732904,0.00077903,66375.0,66374.0,1.14604]
[1722392733114,0.00983935,66375.0,66374.0,1.14604]
[1722392733305,0.00077903,66375.0,66374.0,1.14604]
[1722392733511,0.00983935,66375.0,66374.0,1.14604]
[1722392733738,0.00077903,66375.0,66374.0,1.14604]
[1722392733965,0.00077903,66375.0,66374.0,1.22674]
[1722392733966,0.00981427,66375.0,66374.0,1.22674]
[1722392734150,0.00981427,66375.0,66374.0,1.35195402]
[1722392734151,0.00077903,66375.0,66374.0,1.35195402]
[1722392734324,0.00077903,66375.0,66374.0,1.81069504]
[1722392734553,0.00077903,66375.0,66374.0,1.93590343]
[1722392735318,0.00077903,66375.0,66374.0,1.92190343]
[1722392735721,0.00077903,66375.0,66374.0,1.93590343]
[1722392735942,0.00077903,66375.0,66374.0,1.92190343]
[1722392736146,0.00077903,66375.0,66374.0,1.90790343]
[1722392736367,0.00077903,66375.0,66374.0,1.92190343]
[1722392736544,0.00077903,66375.0,66374.0,1.93590343]
[1722392736945,0.00077903,66375.0,66374.0,1.92190343]
[1722392737229,0.00077903,66375.0,66374.0,1.92190228]
[1722392737408,0.00083,66384.0,66382.0,1.312501]
[1722392737610,0.00083,66384.0,66382.0,1.99162728]
[1722392738029,0.00849,66396.0,66392.0,1.170943]
[1722392738258,0.00849,66396.0,66392.0,1.62039328]
[1722392738468,0.00849,66396.0,66392.0,2.01442428]
[1722392738842,0.00849,66396.0,66392.0,1.88282428]
[1722392739051,0.150575,66412.0,66406.0,0.150587]
[1722392739247,0.04513708,66415.0,66404.0,0.387786]
[1722392739248,0.150579,66411.0,66404.0,0.387786]
[1722392739457,0.150579,66411.0,66407.0,0.150586]
[1722392739458,0.00918438,66411.0,66407.0,0.150586]
[1722392739629,0.00918438,66411.0,66405.0,0.0015542]
[1722392739833,0.150569,66415.0,66405.0,0.0015542]
[1722392740038,0.150569,66415.0,66408.0,0.150584]
[1722392740245,0.150576,66412.0,66409.0,0.0015542]
[1722392740415,0.00918941,66414.0,66409.0,0.0015542]
[1722392740416,0.15976141,66414.0,66409.0,0.0015542]
[1722392740594,0.00918186,66411.0,66407.0,0.0125542]
[1722392740819,0.150574,66413.0,66407.0,0.0125542]
[1722392741049,0.00917935,66410.0,66408.0,0.150584]
[1722392741263,0.150571,66414.0,66409.0,0.0015542]
[1722392741679,0.301127,66418.0,66409.0,0.1521342]
[1722392741907,0.046,66416.0,66411.0,0.150577]
[1722392742127,0.0184,66417.0,66413.0,0.150571]
[1722392742362,0.68095,66423.0,66416.0,0.150565]
[1722392742571,0.150552,66422.0,66417.0,0.0015542]
[1722392742987,0.150552,66422.0,66413.0,0.301143]
[1722392742988,0.150552,66422.0,66414.0,0.0015542]
[1722392743426,0.150555,66421.0,66414.0,0.0015542]
[1722392743608,0.150555,66421.0,66416.0,0.009]
[1722392743812,0.150557,66420.0,66417.0,0.0015542]
[1722392744008,0.0644,66423.0,66417.0,0.0015542]
[1722392744211,0.150554,66421.0,66417.0,0.0015542]
[1722392744419,0.150557,66420.0,66417.0,0.0015542]
[1722392744631,0.150559,66419.0,66415.0,0.0015542]
[1722392744838,0.301106,66422.0,66415.0,0.0015542]
[1722392745044,0.150562,66418.0,66417.0,0.011]
[1722392745542,0.150558,66420.0,66417.0,0.011]
[1722392745737,0.150558,66420.0,66418.0,0.0015542]
[1722392746175,0.0644,66423.0,66418.0,0.0015542]
[1722392746176,0.150559,66419.0,66418.0,0.0015542]
[1722392746633,0.150559,66419.0,66408.0,0.082]
[1722392746634,0.150559,66419.0,66413.0,0.1521262]
[1722392746786,0.30111,66421.0,66415.0,0.012]
[1722392747022,0.150559,66419.0,66417.0,0.014]
[1722392747233,0.150557,66420.0,66417.0,0.014]
[1722392747433,0.150557,66420.0,66418.0,0.0135542]
[1722392747852,0.150557,66420.0,66418.0,0.0015542]
[1722392748058,0.150557,66420.0,66414.0,0.0015542]
[1722392748263,0.150553,66422.0,66415.0,0.150567]
[1722392748467,0.150553,66422.0,66416.0,0.150566]
[1722392748694,0.150553,66422.0,66417.0,0.0015542]
[1722392748899,0.150553,66422.0,66417.0,0.0135542]
[1722392749078,0.301097,66424.0,66417.0,0.0135542]
[1722392749278,0.150552,66422.0,66417.0,0.0135542]
[1722392749691,0.150552,66422.0,66418.0,0.013]
[1722392749915,0.150552,66422.0,66419.0,0.0015542]
[1722392750145,0.150555,66421.0,66419.0,0.0015542]
[1722392750362,0.150555,66421.0,66418.0,0.0015542]
[1722392750579,0.150553,66422.0,66418.0,0.0015542]
[1722392750996,0.150552,66422.0,66418.0,0.0115542]
[1722392751206,0.00942665,66421.0,66418.0,0.0115542]
[1722392751421,0.00942665,66421.0,66419.0,0.01]
[1722392751619,0.00942665,66421.0,66420.0,0.0015542]
[1722392752021,0.150552,66422.0,66420.0,0.0015542]
[1722392752228,0.150552,66422.0,66418.0,0.01]
[1722392752229,0.00942712,66421.0,66418.0,0.01]
[1722392752441,0.00942712,66421.0,66418.0,0.021]
[1722392752645,0.15998212,66421.0,66419.0,0.0015542]
[1722392753056,0.15998212,66421.0,66420.0,0.012]
[1722392753262,0.15998212,66421.0,66418.0,0.01]
[1722392753464,0.15998212,66421.0,66419.0,0.0015542]
[1722392753908,0.00942712,66421.0,66420.0,0.011]
[1722392754317,0.150548,66424.0,66418.0,0.15056]
[1722392754514,0.00942744,66421.0,66419.0,0.0015542]
[1722392754719,0.15055,66423.0,66419.0,0.0125542]
[1722392754953,0.00942493,66420.0,66419.0,0.0125542]
[1722392755157,0.301097,66424.0,66418.0,0.0015542]
[1722392755458,0.150552,66422.0,66418.0,0.009]
[1722392755666,0.150552,66422.0,66419.0,0.0015542]
[1722392755838,0.00942744,66421.0,66419.0,0.0015542]
[1722392756057,0.00942744,66421.0,66420.0,0.012]
[1722392756512,0.15998244,66421.0,66419.0,0.0015542]
[1722392756850,0.15998244,66421.0,66419.0,0.0145542]
[1722392757266,0.15998244,66421.0,66420.0,0.013]
[1722392757477,0.00942744,66421.0,66420.0,0.013]
[1722392757675,0.00942744,66421.0,66419.0,0.0135542]
[1722392757881,0.15055,66423.0,66419.0,0.0265542]
[1722392758081,0.00942937,66420.0,66419.0,0.0265542]
[1722392758282,0.0184,66426.0,66419.0,0.163558]
[1722392758489,0.150548,66424.0,66420.0,0.0135542]
[1722392758895,0.150545,66425.0,66420.0,0.0135542]
[1722392759096,0.150548,66424.0,66420.0,0.0135542]
[1722392759306,0.150546,66425.0,66421.0,0.1431]
[1722392759509,0.150549,66424.0,66422.0,0.0015542]
[1722392760544,0.150549,66424.0,66421.0,0.0666]
[1722392760743,0.150549,66424.0,66422.0,0.0125542]
[1722392760978,0.150546,66425.0,66422.0,0.0125542]
[1722392761225,0.150548,66424.0,66422.0,0.0225542]
[1722392761428,0.150548,66424.0,66422.0,0.021]
[1722392761637,0.15055,66423.0,66422.0,0.021]
[1722392761855,0.15055,66423.0,66422.0,0.011]
[1722392762064,0.15055,66423.0,66422.0,0.0125542]
[1722392762268,0.150548,66424.0,66422.0,0.0125542]
[1722392762476,0.150548,66424.0,66421.0,0.0666]
[1722392762683,0.150548,66424.0,66422.0,0.0015542]
[1722392762893,0.150548,66424.0,66422.0,0.0135542]
[1722392763086,0.150548,66424.0,66422.0,0.0105542]
[1722392763290,0.301089,66426.0,66422.0,0.0105542]
[1722392763498,0.150543,66426.0,66422.0,0.0215542]
[1722392763696,0.150543,66426.0,66422.0,0.011]
[1722392763918,0.150546,66425.0,66422.0,0.0225542]
[1722392764136,0.150549,66424.0,66422.0,0.0225542]
[1722392764350,0.150549,66424.0,66422.0,0.0115542]
[1722392764557,0.150549,66424.0,66422.0,0.0015542]
[1722392764962,0.150549,66424.0,66422.0,0.0095542]
[1722392766165,0.1184,66431.0,66422.0,0.0095542]
[1722392766376,0.00942386,66423.0,66422.0,0.1601062]
[1722392766584,0.347069,66430.0,66424.0,0.150547]
[1722392766585,0.046,66430.0,66424.0,0.150547]
[1722392766788,0.04644821,66429.0,66422.0,0.0095542]
[1722392766943,0.19698821,66428.0,66423.0,0.0771]
[1722392767156,0.19698921,66427.0,66423.0,0.0771]
[1722392767405,0.04644821,66426.0,66423.0,0.0771]
[1722392767969,0.04644821,66425.0,66423.0,0.0771]
[1722392768203,0.301071,66430.0,66423.0,0.238649]
[1722392768204,0.04644821,66424.0,66423.0,0.238649]
[1722392768419,0.04644821,66424.0,66423.0,0.84085]
[1722392768638,0.61653,66432.0,66426.0,0.150542]
[1722392768839,0.04743214,66431.0,66424.0,0.0652]
[1722392769009,0.150536,66430.0,66424.0,0.215747]
[1722392769210,0.19796814,66429.0,66424.0,0.0652]
[1722392769440,0.04743214,66428.0,66424.0,0.0652]
[1722392769638,0.04743214,66428.0,66424.0,0.215747]
[1722392769840,0.04743214,66427.0,66424.0,0.215747]
[1722392770073,0.00915698,66433.0,66424.0,0.0652]
[1722392770074,0.04743214,66426.0,66424.0,0.0652]
[1722392770269,0.00849,66434.0,66427.0,0.0609]
[1722392770389,0.00849,66434.0,66433.0,0.2274]
[1722392770818,0.00849,66434.0,66433.0,0.141]
[1722392771016,0.05596373,66434.0,66433.0,0.141]
[1722392771283,0.15053,66432.0,66430.0,0.0629]
[1722392771502,0.30954,66434.0,66429.0,0.0758]
[1722392771503,0.150528,66433.0,66429.0,0.0758]
[1722392771753,0.150531,66432.0,66428.0,0.0629]
[1722392771942,0.150531,66432.0,66424.0,0.0731]
[1722392771943,0.150543,66426.0,66424.0,0.0731]
[1722392772117,0.150539,66428.0,66424.0,0.0731]
[1722392772541,0.150537,66429.0,66424.0,0.0641]
[1722392772692,0.048237,66428.0,66424.0,0.0641]
[1722392772891,0.150537,66429.0,66424.0,0.0641]
[1722392773100,0.301059,66433.0,66424.0,0.0641]
[1722392773101,0.150538,66428.0,66424.0,0.0641]
[1722392773301,0.150537,66429.0,66424.0,0.0641]
[1722392773507,0.30107,66430.0,66424.0,0.0701]
[1722392773732,0.150544,66426.0,66424.0,0.0641]
[1722392774134,0.150541,66427.0,66424.0,0.0691]
[1722392774360,0.150541,66427.0,66424.0,0.0641]
[1722392774561,0.150541,66427.0,66424.0,0.0681]
[1722392774722,0.301069,66430.0,66424.0,0.0681]
[1722392774929,0.150539,66428.0,66424.0,0.0681]
[1722392775158,0.19865378,66427.0,66424.0,0.0681]
[1722392775378,0.04811278,66426.0,66424.0,0.004]
[1722392775571,0.150543,66426.0,66421.0,0.1447]
[1722392775856,0.150541,66427.0,66422.0,0.0015542]
[1722392776033,0.150541,66427.0,66424.0,0.006]
[1722392776313,0.309543,66434.0,66424.0,0.006]
[1722392776314,0.347055,66433.0,66424.0,0.006]
[1722392776520,0.150533,66431.0,66426.0,0.0864]
[1722392776741,0.19869793,66430.0,66426.0,0.0864]
[1722392776954,0.309543,66434.0,66429.0,0.0864]
[1722392777168,0.15053,66432.0,66429.0,0.0864]
[1722392777441,0.00849,66434.0,66430.0,0.0612]
[1722392777679,0.00849,66434.0,66423.0,0.301097]
[1722392777680,0.00849,66434.0,66433.0,0.15000844]
[1722392777899,0.00849,66434.0,66433.0,0.51566344]
[1722392778201,0.00849,66434.0,66433.0,0.81671844]
[1722392778561,0.00849,66434.0,66433.0,0.89771844]
[1722392780363,0.00849,66434.0,66433.0,0.91171844]
[1722392780573,0.00849,66434.0,66433.0,0.92571844]
[1722392780788,0.00849,66434.0,66433.0,0.89771844]
[1722392781215,0.00849,66434.0,66433.0,0.92571844]
[1722392781439,0.00849,66434.0,66433.0,0.91171844]
[1722392781652,0.00849,66434.0,66433.0,1.21277344]
[1722392781882,0.00849,66434.0,66433.0,0.91171844]